Cogmind - Beta 10.2 @@@ ROGUE MODE // 2021.06.19 @ 12:11:20 Player: AnthonyDPS 2004 Result: Destroyed by G-47 Trooper with Particle Gun Performance ------------- Evolutions (0) 0 Regions Visited (2) 400 Robots Destroyed (14) 70 Value Destroyed (354) 354 Prototype IDs (2) 40 Alien Tech Used (0) 0 Bonus (0) 0 TOTAL SCORE: 864 Bonus ------- None Cogmind --------- Core Integrity 0/250 Matter 300/300 Energy 100/100 System Corruption 5% Temperature Cool (9) Movement Walking (120) Location -10/Mines Parts ------- > --- POWER (1) -------- (None) > --- PROPULSION (2) --- Aluminum Leg > --- UTILITY (2) ------ Small Storage Unit Sensor Array > --- WEAPON (2) ------- (None) > --- INVENTORY (6) ---- Ion Engine Wheel Wheel Sensor Array ECM Suite Peak State ------------ > --- POWER ------------ Light Nuclear Core > --- PROPULSION ------- Aluminum Leg Aluminum Leg > --- UTILITY ---------- Small Storage Unit Sensor Array > --- WEAPON ----------- Small Laser Assault Rifle > --- INVENTORY -------- Ion Engine Wheel Wheel Improved Terrain Scanner ECM Suite [Rating: 9] Favorites ----------- Power Ion Engine Engine Ion Engine Power Core Light Nuclear Core Propulsion Wheel Leg Aluminum Leg Wheel Wheel Utility Small Storage Unit Device Sensor Array Storage Small Storage Unit Weapon Assault Rifle Energy Gun EM Pulse Gun Ballistic Gun Assault Rifle Build | -11 -10 -10 ------- Run | Scr Mat Min Slots Evolved . | . . . Power . | . . . Propulsion . | . . . Utility . | . . . Weapon . | . . . Parts Attached 23 | 7 14 2 Power 2 | 1 1 . Engine 1 | 1 . . Core 1 | . 1 . Reactor . | . . . Propulsion 7 | 2 5 . Treads . | . . . Leg 2 | . 2 . Wheel 5 | 2 3 . Hover . | . . . Flight . | . . . Utility 9 | 2 5 2 Device 6 | 1 5 . Storage 3 | 1 . 2 Processor . | . . . Hackware . | . . . Protection . | . . . Artifact . | . . . Weapon 5 | 2 3 . Energy Gun 2 | 1 1 . Energy Cannon . | . . . Ballistic Gun 3 | 1 2 . Ballistic Cannon . | . . . Launcher . | . . . Special Weapon . | . . . Impact Weapon . | . . . Slashing Weapon . | . . . Piercing Weapon . | . . . Special Melee Weapon . | . . . Unidentified Prototypes . | . . . Parts Lost 11 | . 7 4 Power 2 | . 1 1 Propulsion 5 | . 4 1 Utility . | . . . Weapon 4 | . 2 2 Highest Loss Streak 5 | . 5 4 Average Slot Usage (%) 92 | . 93 85 Engine 7 | . 8 . Core 5 | . 4 12 Leg 10 | . 7 26 Wheel 14 | . 16 . Device 14 | . 14 14 Storage 14 | . 14 14 Energy Gun 11 | . 12 8 Ballistic Gun 13 | . 14 10 Naked Turns . | . . . Heaviest Build 41 | 14 14 41 Greatest Support 26 | 26 26 20 Greatest Overweight (x) 4 | . 4 2 Average Overweight (x) . | . . . Largest Inventory Capacity 12 | 6 6 12 Average Capacity 6 | 5 6 6 Most Carried 6 | 6 6 6 Average Carried 5 | 4 5 5 Final Capacity 6 | 6 6 6 Final Carried 6 | 6 6 5 Class Distribution -------------------- 71% | Mutant 28% | Scavenger-Mutant Dominant Class ---------------- Mutant | -10/Materials Mutant | -10/Mines Resources | -11 -10 -10 ----------- Run | Scr Mat Min Matter Collected 450 | 184 240 26 Remotely . | . . . Salvage Created 540 | 129 411 . Parts 25 | 8 17 . Haulers Intercepted . | . . . Recyclers Shooed . | . . . Parts Field Recycled . | . . . Retrieved Matter . | . . . Parts Self-Destructed . | . . . Prevented . | . . . Kills | -11 -10 -10 ------- Run | Scr Mat Min Combat Hostiles Destroyed 9 | . 9 . Guns 8 | . 8 . AOE 1 | . 1 . Classes Destroyed 4 | 2 2 . Worker 2 | . 2 . Tunneler 2 | 2 . . Recycler 1 | 1 . . Grunt 9 | . 9 . Best Kill Streak 5 | 3 5 . Combat Bots Only 5 | . 5 . Max Kills in Single Turn 2 | 2 2 . Gunslinging 1 | . 1 . Exploded 1 | . 1 . Melee . | . . . Uniques/NPCs Destroyed . | . . . Combat | -11 -10 -10 -------- Run | Scr Mat Min Damage Taken 1040 | . 759 281 Core 266 | . 173 93 Absorbed by Shields . | . . . Core Remaining (%) 100 | 100 . . Volleys Fired 61 | 9 47 5 Largest 2 | 2 2 2 Hottest 60 | 60 60 60 Shots Fired 102 | 13 82 7 Gun 102 | 13 82 7 Cannon . | . . . Launcher . | . . . Special . | . . . Kinetic 58 | 4 49 5 Thermal 13 | . 11 2 Explosive . | . . . Electromagnetic 31 | 9 22 . Robot Hit Streak 11 | 11 8 4 Robot Miss Streak 3 | 1 3 2 Penetration Max . | . . . Secondary Targets 1 | . 1 . Max Gunslinging Chain 1 | . 1 . Shots Hit Robots 70 | 11 54 5 Core Hits 31 | 4 21 6 Critical Hits 1 | . 1 . Critical Kills 1 | . 1 . Critical Parts Destroyed . | . . . Melee Attacks . | . . . Impact . | . . . Slashing . | . . . Piercing . | . . . Sneak Attacks . | . . . Combat Hostiles . | . . . Follow-up Attacks . | . . . Damage Inflicted 1002 | 159 767 76 Guns 864 | 159 652 53 Cannons . | . . . Explosions 115 | . 115 . Melee . | . . . Ramming 23 | . . 23 Kinetic 462 | 51 358 53 Thermal 192 | . 192 . Explosive . | . . . Electromagnetic 325 | 108 217 . Impact . | . . . Slashing . | . . . Piercing . | . . . Highest Corruption 5 | . . 5 Average Corruption 5 | . . 5 Corruption Purged . | . . . Overload Shots . | . . . Overflow Damage 34 | . 34 . Projectiles . | . . . Explosions 34 | . 34 . Melee . | . . . Knockbacks . | . . . Impact . | . . . Kinetic . | . . . Secondary . | . . . Self-Inflicted Damage 81 | . 76 5 Shots 2 | . 2 . Rammed 8 | 1 . 7 Targets Rammed 14 | 1 . 13 Kicked 6 | . . 6 Crushed . | . . . Highest Temperature 153 | . 153 12 Average Temperature 53 | . 57 6 Received Heat Transfer 534 | . 378 156 Siege Activations . | . . . Robots Corrupted . | . . . Combat Hostiles . | . . . Parts Fried 2 | 1 1 . Impact Corruptions . | . . . Robots Melted . | . . . Combat Hostiles . | . . . Parts Melted . | . . . Heat Transferred 225 | . 225 . Parts Sabotaged . | . . . Parts Stolen . | . . . Parts Stripped . | . . . Power Chain Reactions 2 | . 2 . Missiles Intercepted . | . . . Alert | -11 -10 -10 ------- Run | Scr Mat Min Peak Influence 234 | 15 234 13 Initial 13 | . 9 13 Average 76 | 6 103 7 Maximum Alert Level 1 | . 1 . Low Security (%) 93 | 100 91 100 Level 1 6 | . 8 . Level 2 . | . . . Level 3 . | . . . Level 4 . | . . . Level 5 . | . . . High Security . | . . . Max Security . | . . . Squads Dispatched 2 | . 2 . Investigation 1 | . 1 . Extermination . | . . . Reinforcement 1 | . 1 . Assault . | . . . Garrison . | . . . Intercept . | . . . Construction Impeded . | . . . Haulers Reinforced . | . . . Stealth | -11 -10 -10 --------- Run | Scr Mat Min Distress Signals 2 | . 2 . Communications Jammed . | . . . Distress Signals . | . . . Times Spotted 17 | . 15 2 Peak Tracking Total 6 | . 6 2 Tactical Retreats . | . . . Traps | -11 -10 -10 ------- Run | Scr Mat Min Traps Triggered 1 | . 1 . Indirectly . | . . . Trap Hack Attempts . | . . . Triggered . | . . . Disarmed . | . . . Reprogrammed . | . . . Reused . | . . . Traps Extracted . | . . . Installed . | . . . Triggered . | . . . Machines | -11 -10 -10 ---------- Run | Scr Mat Min Machines Disabled . | . . . Max in Single Turn . | . . . Machines Sabotaged . | . . . Garrisons Compromised . | . . . Overloaded Fab Kills . | . . . Fab Network Shutdowns . | . . . Hacking | -11 -10 -10 --------- Run | Scr Mat Min Machines Accessed 1 | . 1 . Terminals 1 | . 1 . Fabricators . | . . . Repair Stations . | . . . Recycling Units . | . . . Scanalyzers . | . . . Garrison Access . | . . . Total Hacks 2 | . 2 . Successful 1 | . 1 . Failed 1 | . 1 . Catastrophic . | . . . Database Lockouts . | . . . Manual . | . . . Terminals 2 | . 2 . Fabricators . | . . . Repair Stations . | . . . Recycling Units . | . . . Scanalyzers . | . . . Garrison Access . | . . . Terminal Hacks 1 | . 1 . Prototype ID Bank 1 | . 1 . Fabricator Hacks . | . . . Repair Station Hacks . | . . . Recycling Unit Hacks . | . . . Scanalyzer . | . . . Garrison Access Hacks . | . . . Unauthorized Hacks . | . . . Terminals . | . . . Fabricators . | . . . Repair Stations . | . . . Recycling Units . | . . . Scanalyzers . | . . . Garrison Access . | . . . Data Cores Recovered . | . . . Used . | . . . Hacking Detections 1 | . 1 . Full Trace Events . | . . . Feedback Events . | . . . Feedback Blocked . | . . . Robot Schematics Acquired . | . . . Robots Built . | . . . Matter . | . . . Time . | . . . Total Robot Build Rating . | . . . Part Schematics Acquired . | . . . Parts Built . | . . . Matter . | . . . Time . | . . . Total Part Build Rating . | . . . Parts Repaired . | . . . Time . | . . . Parts Recycled . | . . . Recycled Matter . | . . . Retrieved Matter . | . . . Retrieved Components . | . . . Parts Scanalyzed . | . . . Part Schematics Acquired . | . . . Parts Damaged . | . . . Bothacking | -11 -10 -10 ------------ Run | Scr Mat Min Used RIF Installer . | . . . Robots Hacked . | . . . Non-combat . | . . . Combat . | . . . Robot Hacks Applied . | . . . Relay Couplers Released . | . . . Robots Rewired . | . . . Allies Hacked . | . . . Hacks Repelled . | . . . Allies | -11 -10 -10 -------- Run | Scr Mat Min Total Allies . | . . . Largest Group . | . . . Highest-Rated Group . | . . . Highest-Rated Ally . | . . . Total Orders . | . . . Ally Attacks . | . . . Total Damage . | . . . Kills . | . . . Allies Corrupted . | . . . Allies Melted . | . . . Intel | -11 -10 -10 ------- Run | Scr Mat Min Robot Analysis Total . | . . . Derelict Logs Recovered . | . . . Drone Launches . | . . . Drone Recoveries . | . . . Exploration | -11 -10 -10 ------------- Run | Scr Mat Min Turns Passed 601 | 100 435 66 Spaces Moved 318 | 63 233 22 Core 21 | 4 17 . Treads . | . . . Legs 75 | . 53 22 Wheels 222 | 59 163 . Hover . | . . . Flight . | . . . Fastest Speed 50 | 50 80 120 Average Speed 102 | 87 104 125 Slowest Speed 250 | 90 250 180 Overloaded Moves . | . . . Propulsion Burnouts . | . . . Robots Hopped . | . . . Cave-ins Triggered . | . . . Exploration Rate (%) 18 | 4 41 11 Regions Visited 2 Branch Regions 1 Pre-discovered Areas . | . . . Known Exits Taken . | . . . Unknown Exits Taken 2 | 1 1 . Scrap Searched 1 | . . 1 Spaces Dug . | . . . Terrain Destroyed 11 | . 11 . Melee . | . . . Projectile . | . . . AOE 11 | . 11 . Terrain Rammed . | . . . Walls Destroyed . | . . . Machines Disabled . | . . . Actions | -11 -10 -10 --------- Run | Scr Mat Min Total 494 | 94 348 52 Wait 52 | 1 44 7 Move 317 | 63 232 22 Hop . | . . . Pick Up 14 | 10 3 1 Fast Attach 15 | 7 7 1 Attach 2 | . 2 . Detach 1 | . 1 . Swap 6 | . 5 1 Drop 13 | 4 7 2 Fire 61 | 9 47 5 Melee . | . . . Ram . | . . . Kick 13 | . . 13 Crush . | . . . Escape Stasis . | . . . Rewire . | . . . Trap . | . . . Miscellaneous . | . . . Route ------- -11/Scrapyard -10/Materials -10/Mines History --------- Turn | Location | Event 17 | -11/Scrapyard | Discovered new exit (range 16) 101 | -11/Scrapyard | Entered Materials 310 | -10/Materials | Build established: Mutant 383 | -10/Materials | Core integrity fell below 50% 409 | -10/Materials | Lost 5 parts (1p2n2w) 506 | -10/Materials | Discovered new exit (range 15) 536 | -10/Materials | Entered Mines 590 | -10/Mines | Core integrity fell below 20% 602 | -10/Mines | Destroyed by G-47 Trooper with Particle Gun Last Messages --------------- 00557_ Dropped Sml. Storage Unit. 00562_ Dropped Hcp. Storage Unit. 00563_ Acquired Sml. Storage Unit. 00565_ Acquired ECM Suite. 00573_ Sml. Laser destroyed. 00586_ Assault Rifle destroyed. 00588_ Kicked G-47 Trooper out of the way. 00589_ Slammed into G-47 Trooper. 00589_ Destabilizing: Core damaged (-2). 00590_ Slammed into G-47 Trooper. 00590_ Lgt. Nuclear Core destroyed. 00591_ Kicked G-47 Trooper out of the way. 00596_ Slammed into G-47 Trooper. 00596_ Aluminum Leg destroyed. 00596_ System corrupted by crushing effect (+5). 00597_ Slammed into G-47 Trooper. 00600_ Destabilizing: System interference. 00600_ Sensor Array temporarily disabled. 00601_ Kicked G-47 Trooper out of the way. 00602_ Slammed into G-47 Trooper. Map ----- +----------------------------------------------------+ | | | ?????????????????????????????????????????????????? | | ?????????????????????????????????????????????????? | | ??????????????????##?????????????????????????????? | | ????????????????? ##????????????????????????????? | | ???????????????? #????????????????????????????? | | ??????????????? #????????????????????????????? | | ???###???????? #?????????????????????????????? | | ??## ##?????# #?????????????????????????????? | | ?## ##???# ##????????????????????????????? | | ## #### #????????????????????????????? | | # #???????????????????????????? | | ## #??????????????????????????? | | ### #????? #??????????????????????????? | | #??# ##????????##??????????????????????????? | | #???# #????????????????????????????????????? | | # #????## #????????????????????????????????????? | | # ??????## #????????????????????????????????????? | | # ????????# #####????????????????????????????????? | | #?????????# #????????????????????????????????? | | ??????????# #??????#########?????????????????? | | ??????????#### ######## #?????????????????? | | ?????????????# ! ! """ #?????????????????? | | ?????????????# =! """ #?????????????????? | | ?????????????###########% """ #?????????????????? | | ???????????????????????# @ #?????????????????? | | ???????????????????????###g#####?????????????????? | | ?????????????????????????? #?????????????????????? | | ?????????????????????????? #?????????????????????? | | ?????????????????????????? #?????????????????????? | | ?????????????????????????? #?????????????????????? | | ?????????????????????????? #?????????????????????? | | ??????????????????????????? ?????????????????????? | | ??????????????????????????? ?????????????????????? | | ???????????????????????????#?????????????????????? | | ?????????????????????????????????????????????????? | | ?????????????????????????????????????????????????? | | ?????????????????????????????????????????????????? | | ?????????????????????????????????????????????????? | | ?????????????????????????????????????????????????? | | ?????????????????????????????????????????????????? | | ?????????????????????????????????????????????????? | | ?????????????????????????????????????????????????? | | ?????????????????????????????????????????????????? | | ?????????????????????????????????????????????????? | | ?????????????????????????????????????????????????? | | ?????????????????????????????????????????????????? | | ?????????????????????????????????????????????????? | | ?????????????????????????????????????????????????? | | ?????????????????????????????????????????????????? | +----------------------------------------------------+ Best States ------------- Heat Dissipation 25 Energy Generation 14 Energy Capacity 250 Matter Stores 298 Matter Capacity 300 Sight Range 16 Robot Scan Range 10 Terrain Scan Range 16 Terrain Scan Density 10 Evasion (%) 44 Item Schematics ----------------- None Robot Schematics ------------------ None Fabricated ------------ Nothing Alien Tech Used ----------------- None Achievements -------------- None Challenges ------------ None Game ------ Seed FieldAssemblyMicrothruster Manual? 0 Play Time 00:09:44 Cumulative 18.8 hours Start 2021.06.19 @ 12:01:57 End 2021.06.19 @ 12:11:20 Sessions 1 Manual Loads 0 Difficulty Rogue Special Mode None Game No. 35 Rogue 35 Adventurer 0 Explorer 0 Win Type - Total 0 Types 0/0/0/0/0/0/0/0/0 Lore% 22 Gallery% 26 Achievement% 19 Wizard Run 0 Options --------- ASCII 0 Keyboard 0 Movement Numpad Keybinds 0 Fullscreen 2 Font 12/Smallcaps Map View 83x54 Tactical HUD 1 Map Filters NONE Filters NONE Steam 1 RUN: 34dcd73b-d9aa-40bf-a15d-be8465f45ed4